Cogmind - Beta 10.2 @@@ ROGUE MODE // 2021.12.08 @ 02:08:09 // Winter2019/RPGLIKE Player: FontPeg Result: Destroyed by G-47 Trooper with Particle Gun Performance ------------- Evolutions (3) 1500 Regions Visited (6) 1200 Robots Destroyed (31) 155 Value Destroyed (785) 785 Prototype IDs (4) 80 Alien Tech Used (0) 0 Bonus (0) 0 TOTAL SCORE: 3720 Bonus ------- None Cogmind --------- Core Integrity 0/1000 Matter 300/300 Energy 7/550 System Corruption 0% Temperature Cool (9) Movement Flying (117) Ox1 Location -7/Factory Parts ------- > --- POWER (1) -------- Micro Nuclear Core > --- PROPULSION (3) --- Flight Unit VTOL Module > --- UTILITY (4) ------ High-capacity Battery Long-range Sensor Array Improved Signal Interpreter Improved Shield Generator > --- WEAPON (2) ------- Spear > --- INVENTORY (3) ---- Flight Unit Transmission Jammer System Shield Peak State ------------ > --- POWER ------------ Micro Nuclear Core > --- PROPULSION ------- Flight Unit VTOL Module Xenon Bombardment Thruster > --- UTILITY ---------- High-capacity Battery Long-range Sensor Array Improved Signal Interpreter Improved Shield Generator > --- WEAPON ----------- Precision Shock Rifle Spear > --- INVENTORY -------- Flight Unit Transmission Jammer System Shield [Rating: 31] Favorites ----------- Power Ion Engine Engine Ion Engine Power Core Micro Nuclear Core Propulsion Flight Unit Wheel Wheel Flight Unit Flight Unit Utility High-capacity Battery Device Advanced Sensor Array Storage High-capacity Battery Processor Improved Signal Interpreter Weapon Medium Laser Energy Gun Medium Laser Piercing Weapon Spear Build | -11 -10 -10 -10 -9 -8 -7 ------- Run | Scr Mat Min Exi Min Mat Fac Slots Evolved 6 | 3 . . . 1 1 1 Power . | . . . . . . . Propulsion 2 | 1 . . . 1 . . Utility 3 | 1 . . . . 1 1 Weapon 1 | 1 . . . . . . Parts Attached 36 | 5 . . 2 11 11 7 Power 3 | 1 . . . 1 . 1 Engine 1 | 1 . . . . . . Core 2 | . . . . 1 . 1 Reactor . | . . . . . . . Propulsion 12 | 2 . . . 6 2 2 Treads . | . . . . . . . Leg . | . . . . . . . Wheel 2 | 2 . . . . . . Hover . | . . . . . . . Flight 10 | . . . . 6 2 2 Utility 14 | . . . 2 2 7 3 Device 9 | . . . . 1 5 3 Storage 4 | . . . 2 1 1 . Processor 1 | . . . . . 1 . Hackware . | . . . . . . . Protection . | . . . . . . . Artifact . | . . . . . . . Weapon 7 | 2 . . . 2 2 1 Energy Gun 4 | 2 . . . . 1 1 Energy Cannon . | . . . . . . . Ballistic Gun . | . . . . . . . Ballistic Cannon . | . . . . . . . Launcher . | . . . . . . . Special Weapon . | . . . . . . . Impact Weapon . | . . . . . . . Slashing Weapon . | . . . . . . . Piercing Weapon 3 | . . . . 2 1 . Special Melee Weapon . | . . . . . . . Unidentified Prototypes 2 | . . . . . . 2 Parts Lost 3 | . . . . . . 3 Power 1 | . . . . . . 1 Propulsion 1 | . . . . . . 1 Utility . | . . . . . . . Weapon 1 | . . . . . . 1 Highest Loss Streak 2 | . . . . . . 2 Average Slot Usage (%) 89 | . 71 71 81 91 99 95 Engine 6 | . 14 14 14 6 . . Core 5 | . . . . 5 11 10 Wheel 12 | . 28 28 28 6 . . Flight 18 | . . . . 28 34 29 Device 7 | . . . . 11 11 15 Storage 10 | . . . 10 13 11 10 Processor 3 | . . . . . 8 10 Energy Gun 19 | . 28 28 28 19 11 9 Piercing Weapon 4 | . . . . . 11 10 Naked Turns . | . . . . . . . Heaviest Build 22 | 8 8 8 14 14 17 22 Greatest Support 21 | 20 20 20 20 20 17 21 Greatest Overweight (x) 3 | . . . . 3 . 2 Average Overweight (x) . | . . . . . . . Largest Inventory Capacity 3 | . . . . 2 3 3 Average Capacity 1 | . . . . 1 2 3 Most Carried 3 | . . . . 2 3 3 Average Carried 1 | . . . . 1 2 2 Final Capacity 3 | . . . . 2 3 3 Final Carried 3 | . . . . 2 3 3 Class Distribution -------------------- 56% | Hacker-Mutant 43% | Mutant Dominant Class ---------------- Mutant | -10/Materials Mutant | -10/Mines Mutant | -10/Exiles Hacker-Mutant | -9/Mines Hacker-Mutant | -8/Materials Hacker-Mutant | -7/Factory Resources | -11 -10 -10 -10 -9 -8 -7 ----------- Run | Scr Mat Min Exi Min Mat Fac Matter Collected 560 | 236 . . . 144 110 70 Remotely . | . . . . . . . Salvage Created 856 | . . . . 144 230 482 Parts 76 | . 1 . . 14 35 26 Haulers Intercepted . | . . . . . . . Recyclers Shooed . | . . . . . . . Parts Field Recycled . | . . . . . . . Retrieved Matter . | . . . . . . . Parts Self-Destructed . | . . . . . . . Prevented . | . . . . . . . Kills | -11 -10 -10 -10 -9 -8 -7 ------- Run | Scr Mat Min Exi Min Mat Fac Combat Hostiles Destroyed 24 | . 1 . . 8 9 6 Melee 15 | . . . . . 9 6 Guns 9 | . 1 . . 8 . . Classes Destroyed 7 | . 1 . . 1 3 2 Tunneler 1 | . . . . . 1 . Recycler 1 | . . . . . . 1 Operator 1 | . . . . . . 1 Watcher 4 | . . . . . 3 1 Swarmer 14 | . . . . 6 5 3 Grunt 3 | . 1 . . 2 . . Sentry 7 | . . . . . 4 3 Best Kill Streak 6 | . 1 . . 3 6 3 Combat Bots Only 6 | . 1 . . 3 6 3 Max Kills in Single Turn 1 | . 1 . . 1 1 1 Gunslinging . | . . . . . . . Exploded . | . . . . . . . Melee 1 | . . . . . 1 1 Uniques/NPCs Destroyed . | . . . . . . . Combat | -11 -10 -10 -10 -9 -8 -7 -------- Run | Scr Mat Min Exi Min Mat Fac Damage Taken 1859 | . 27 . . 296 246 1290 Core 1546 | . 24 . . 246 196 1080 Absorbed by Shields 206 | . . . . . 44 162 Redirected to Core 1002 | . 12 . . 169 155 666 Core Remaining (%) 100 | 100 . . . 100 100 . Volleys Fired 34 | . 6 . . 19 4 5 Largest 2 | . 2 . . 2 1 1 Hottest 90 | . 90 . . 90 80 55 Shots Fired 59 | . 12 . . 38 4 5 Gun 59 | . 12 . . 38 4 5 Cannon . | . . . . . . . Launcher . | . . . . . . . Special . | . . . . . . . Kinetic . | . . . . . . . Thermal 54 | . 12 . . 38 4 . Explosive . | . . . . . . . Electromagnetic 5 | . . . . . . 5 Robot Hit Streak 8 | . 3 . . 8 3 1 Robot Miss Streak 4 | . 2 . . 4 2 2 Penetration Max . | . . . . . . . Secondary Targets 3 | . . . . 3 . . Max Gunslinging Chain 1 | . . . . 1 . . Shots Hit Robots 79 | . 7 . . 24 25 23 Core Hits 40 | . 2 . . 11 14 13 Critical Hits 2 | . . . . . 2 . Critical Kills 2 | . . . . . 2 . Critical Parts Destroyed . | . . . . . . . Melee Attacks 65 | . . . . 2 27 36 Impact . | . . . . . . . Slashing . | . . . . . . . Piercing 65 | . . . . 2 27 36 Sneak Attacks 2 | . . . . . 1 1 Combat Hostiles . | . . . . . . . Follow-up Attacks . | . . . . . . . Damage Inflicted 1936 | . 84 . . 300 787 765 Guns 473 | . 84 . . 277 48 64 Cannons . | . . . . . . . Explosions . | . . . . . . . Melee 1463 | . . . . 23 739 701 Ramming . | . . . . . . . Kinetic . | . . . . . . . Thermal 409 | . 84 . . 277 48 . Explosive . | . . . . . . . Electromagnetic 64 | . . . . . . 64 Impact . | . . . . . . . Slashing . | . . . . . . . Piercing 1463 | . . . . 23 739 701 Highest Corruption . | . . . . . . . Average Corruption . | . . . . . . . Corruption Purged . | . . . . . . . Overload Shots . | . . . . . . . Overflow Damage 29 | . . . . 3 15 11 Projectiles . | . . . . . . . Explosions . | . . . . . . . Melee 29 | . . . . 3 15 11 Knockbacks . | . . . . . . . Impact . | . . . . . . . Kinetic . | . . . . . . . Secondary . | . . . . . . . Self-Inflicted Damage . | . . . . . . . Shots . | . . . . . . . Rammed . | . . . . . . . Targets Rammed . | . . . . . . . Kicked . | . . . . . . . Crushed . | . . . . . . . Highest Temperature 225 | . 146 . . 225 56 120 Average Temperature 66 | . 65 . . 96 21 50 Received Heat Transfer 407 | . 15 . . 81 45 266 Siege Activations . | . . . . . . . Robots Corrupted . | . . . . . . . Combat Hostiles . | . . . . . . . Parts Fried 1 | . . . . . . 1 Impact Corruptions . | . . . . . . . Robots Melted . | . . . . . . . Combat Hostiles . | . . . . . . . Parts Melted 3 | . 1 . . 2 . . Heat Transferred 1078 | . 223 . . 743 112 . Parts Sabotaged . | . . . . . . . Parts Stolen . | . . . . . . . Parts Stripped . | . . . . . . . Power Chain Reactions . | . . . . . . . Missiles Intercepted . | . . . . . . . Alert | -11 -10 -10 -10 -9 -8 -7 ------- Run | Scr Mat Min Exi Min Mat Fac Peak Influence 328 | . 48 18 . 190 328 224 Initial 74 | . . 18 . . 74 21 Average 91 | . 36 18 . 144 69 105 Maximum Alert Level 1 | . . . . . 1 1 Low Security (%) 92 | 100 100 100 . 100 89 86 Level 1 7 | . . . . . 10 13 Level 2 . | . . . . . . . Level 3 . | . . . . . . . Level 4 . | . . . . . . . Level 5 . | . . . . . . . High Security . | . . . . . . . Max Security . | . . . . . . . Squads Dispatched 6 | . 2 . . 1 . 3 Investigation 2 | . . . . 1 . 1 Extermination 1 | . . . . . . 1 Reinforcement 3 | . 2 . . . . 1 Assault . | . . . . . . . Garrison . | . . . . . . . Intercept . | . . . . . . . Construction Impeded . | . . . . . . . Haulers Reinforced . | . . . . . . . Stealth | -11 -10 -10 -10 -9 -8 -7 --------- Run | Scr Mat Min Exi Min Mat Fac Distress Signals 3 | . . . . . 2 1 Communications Jammed . | . . . . . . . Distress Signals . | . . . . . . . Times Spotted 51 | . 8 . . 9 22 12 Peak Tracking Total 8 | . 7 . . 3 8 7 Tactical Retreats 3 | . . . . . 3 . Traps | -11 -10 -10 -10 -9 -8 -7 ------- Run | Scr Mat Min Exi Min Mat Fac Traps Triggered . | . . . . . . . Indirectly . | . . . . . . . Trap Hack Attempts . | . . . . . . . Triggered . | . . . . . . . Disarmed . | . . . . . . . Reprogrammed . | . . . . . . . Reused . | . . . . . . . Traps Extracted . | . . . . . . . Installed . | . . . . . . . Triggered . | . . . . . . . Machines | -11 -10 -10 -10 -9 -8 -7 ---------- Run | Scr Mat Min Exi Min Mat Fac Machines Disabled . | . . . . . . . Max in Single Turn . | . . . . . . . Machines Sabotaged . | . . . . . . . Garrisons Compromised . | . . . . . . . Overloaded Fab Kills . | . . . . . . . Fab Network Shutdowns . | . . . . . . . Hacking | -11 -10 -10 -10 -9 -8 -7 --------- Run | Scr Mat Min Exi Min Mat Fac Machines Accessed 12 | . 1 . 1 1 6 3 Terminals 9 | . 1 . . . 5 3 Fabricators . | . . . . . . . Repair Stations . | . . . . . . . Recycling Units . | . . . . . . . Scanalyzers 1 | . . . . . 1 . Garrison Access . | . . . . . . . Total Hacks 41 | . 4 . 1 1 25 10 Successful 28 | . 2 . 1 1 20 4 Failed 12 | . 2 . . . 4 6 Catastrophic 1 | . . . . . 1 . Database Lockouts 1 | . . . . . 1 . Manual 21 | . 4 . . . 16 1 Terminals 37 | . 4 . . . 23 10 Fabricators . | . . . . . . . Repair Stations . | . . . . . . . Recycling Units . | . . . . . . . Scanalyzers 2 | . . . . . 2 . Garrison Access . | . . . . . . . Terminal Hacks 20 | . 1 . 1 1 13 4 Record 1 | . . . 1 . . . Part Schematic 3 | . . . . . 1 2 Prototype ID Bank 1 | . . . . . 1 . Open Door 1 | . . . . 1 . . Level Access Points 1 | . . . . . 1 . Branch Access Points 3 | . 1 . . . 1 1 Emergency Access Points 1 | . . . . . 1 . Terminal Index 1 | . . . . . 1 . Unreport Threat 5 | . . . . . 5 . Patrol Status 1 | . . . . . 1 . Recall Investigation 1 | . . . . . . 1 Registered Components 1 | . . . . . 1 . Fabricator Hacks . | . . . . . . . Repair Station Hacks . | . . . . . . . Recycling Unit Hacks . | . . . . . . . Scanalyzer 2 | . . . . . 2 . Insert Component 1 | . . . . . 1 . Analyze 1 | . . . . . 1 . Garrison Access Hacks . | . . . . . . . Unauthorized Hacks 6 | . 1 . . . 5 . Terminals 6 | . 1 . . . 5 . Assimilate 1 | . . . . . 1 . Botnet 5 | . 1 . . . 4 . Fabricators . | . . . . . . . Repair Stations . | . . . . . . . Recycling Units . | . . . . . . . Scanalyzers . | . . . . . . . Garrison Access . | . . . . . . . Data Cores Recovered 1 | . . . . . . 1 Used . | . . . . . . . Hacking Detections 10 | . 1 . . . 6 3 Full Trace Events 2 | . . . . . 1 1 Feedback Events . | . . . . . . . Feedback Blocked . | . . . . . . . Robot Schematics Acquired . | . . . . . . . Robots Built . | . . . . . . . Matter . | . . . . . . . Time . | . . . . . . . Total Robot Build Rating . | . . . . . . . Part Schematics Acquired 4 | . . . . . 2 2 Parts Built . | . . . . . . . Matter . | . . . . . . . Time . | . . . . . . . Total Part Build Rating . | . . . . . . . Parts Repaired . | . . . . . . . Time . | . . . . . . . Parts Recycled . | . . . . . . . Recycled Matter . | . . . . . . . Retrieved Matter . | . . . . . . . Retrieved Components . | . . . . . . . Parts Scanalyzed 1 | . . . . . 1 . Part Schematics Acquired 1 | . . . . . 1 . Parts Damaged 1 | . . . . . 1 . Bothacking | -11 -10 -10 -10 -9 -8 -7 ------------ Run | Scr Mat Min Exi Min Mat Fac Used RIF Installer . | . . . . . . . Robots Hacked . | . . . . . . . Non-combat . | . . . . . . . Combat . | . . . . . . . Robot Hacks Applied . | . . . . . . . Relay Couplers Released . | . . . . . . . Robots Rewired 1 | . . . . . . 1 Allies Hacked . | . . . . . . . Hacks Repelled . | . . . . . . . Allies | -11 -10 -10 -10 -9 -8 -7 -------- Run | Scr Mat Min Exi Min Mat Fac Total Allies 2 | . . . . . 1 1 Largest Group 2 | . . . . . 1 2 Highest-Rated Group 22 | . . . . . 10 22 Highest-Rated Ally 12 | . . . . . 10 12 Total Orders . | . . . . . . . Ally Attacks 6 | . . . . . . 6 Total Damage 76 | . . . . . . 76 Kills 1 | . . . . . . 1 Allies Corrupted . | . . . . . . . Allies Melted . | . . . . . . . Intel | -11 -10 -10 -10 -9 -8 -7 ------- Run | Scr Mat Min Exi Min Mat Fac Robot Analysis Total . | . . . . . . . Derelict Logs Recovered 1 | . . . . 1 . . Drone Launches . | . . . . . . . Drone Recoveries . | . . . . . . . Exploration | -11 -10 -10 -10 -9 -8 -7 ------------- Run | Scr Mat Min Exi Min Mat Fac Turns Passed 2149 | 49 63 44 749 367 565 312 Spaces Moved 2615 | 54 54 55 933 514 545 460 Core 12 | 5 . . . . . 7 Treads . | . . . . . . . Legs . | . . . . . . . Wheels 1133 | 49 54 55 933 42 . . Hover . | . . . . . . . Flight 1470 | . . . . 472 545 453 Fastest Speed 34 | 50 80 80 80 34 34 34 Average Speed 55 | 77 80 80 80 43 34 36 Slowest Speed 290 | 80 80 80 80 290 34 150 Overloaded Moves . | . . . . . . . Propulsion Burnouts . | . . . . . . . Robots Hopped 3 | . . . . . 2 1 Cave-ins Triggered . | . . . . . . . Exploration Rate (%) 36 | 4 13 20 92 77 37 13 Regions Visited 6 Branch Regions 3 Pre-discovered Areas . | . . . . . . . Known Exits Taken 2 | . 1 . . . 1 . Unknown Exits Taken 4 | 1 . 1 1 1 . . Scrap Searched 2 | . . . . 2 . . Spaces Dug . | . . . . . . . Terrain Destroyed . | . . . . . . . Melee . | . . . . . . . Projectile . | . . . . . . . AOE . | . . . . . . . Terrain Rammed . | . . . . . . . Walls Destroyed . | . . . . . . . Machines Disabled . | . . . . . . . Actions | -11 -10 -10 -10 -9 -8 -7 --------- Run | Scr Mat Min Exi Min Mat Fac Total 3149 | 58 61 54 934 616 878 548 Wait 333 | . 1 . . 47 264 21 Move 2603 | 53 53 54 932 513 540 458 Hop 3 | . . . . . 2 1 Pick Up 13 | . . . . 2 8 3 Fast Attach 15 | 5 . . 2 5 . 3 Attach 5 | . . . . 1 3 1 Detach 2 | . . . . 2 . . Swap 17 | . . . . 5 8 4 Drop 23 | . . . . 8 8 7 Fire 34 | . 6 . . 19 4 5 Melee 65 | . . . . 2 27 36 Ram . | . . . . . . . Kick . | . . . . . . . Crush . | . . . . . . . Escape Stasis . | . . . . . . . Rewire 3 | . . . . . . 3 Trap . | . . . . . . . Miscellaneous 33 | . 1 . . 12 14 6 Route ------- -11/Scrapyard -10/Materials (discovered 2 exits: *Min x2) -10/Mines -10/Exiles (discovered 2 exits: *Min x2) -9/Mines (discovered 2 exits: *Mat x2) -8/Materials (discovered 3 exits: *Fac x3) -7/Factory (discovered 5 exits: [*Fac] / *Sto x2 / *Low x2) History --------- Turn | Location | Event 1 | -11/Scrapyard | Upgraded with Propulsion slot (x1) 1 | -11/Scrapyard | Upgraded with Utility slot (x1) 1 | -11/Scrapyard | Upgraded with Weapon slot (x1) 13 | -11/Scrapyard | Discovered new exit (range 14) 50 | -11/Scrapyard | Entered Materials 73 | -10/Materials | Discovered new exit (range 15) 102 | -10/Materials | Identified exit to Mines 113 | -10/Materials | Entered Mines 152 | -10/Mines | Deemed a non-threat by the Exiles lab entrance 153 | -10/Mines | Discovered new exit (range 5) 157 | -10/Mines | Entered Exiles 179 | -10/Exiles | Met 8R-AWN 193 | -10/Exiles | Met EX-HEX 216 | -10/Exiles | Met EX-BIN 298 | -10/Exiles | Met EX-DEC 317 | -10/Exiles | Build established: Mutant 373 | -10/Exiles | Visited The Gauntlet 542 | -10/Exiles | Discovered new exit (range 11) 627 | -10/Exiles | Discovered new exit (range 14) 906 | -10/Exiles | Entered Mines 919 | -9/Mines | Reached level 2 930 | -9/Mines | Upgraded with Propulsion slot (x1) 1030 | -9/Mines | Discovered new exit (range 11) 1099 | -9/Mines | Met a Derelict shopkeep closing up shop 1185 | -9/Mines | Discovered new exit (range 12) 1225 | -9/Mines | Learned Materials trap positions 1228 | -9/Mines | Build established: Hacker-Mutant 1273 | -9/Mines | Entered Materials 1274 | -8/Materials | Loaded intel: 17 trap records 1275 | -8/Materials | Reached level 3 1363 | -8/Materials | Reached level 4 1416 | -8/Materials | Upgraded with Utility slot (x1) 1424 | -8/Materials | Identified exit to Factory 1494 | -8/Materials | Central database locked down 1838 | -8/Materials | Entered Factory 1838 | -7/Factory | Accompanied by 1 ally 1840 | -7/Factory | Reached level 5 1841 | -7/Factory | Upgraded with Utility slot (x1) 1925 | -7/Factory | Discovered new exit (range 5) 1926 | -7/Factory | Identified exit to Storage 1932 | -7/Factory | Identified exit to Lower Caves 2023 | -7/Factory | Discovered new exit (range 16) 2097 | -7/Factory | Reached level 6 2099 | -7/Factory | Core integrity fell below 50% 2135 | -7/Factory | Core integrity fell below 20% 2150 | -7/Factory | Destroyed by G-47 Trooper with Particle Gun Last Messages --------------- 02117_ R-06 Scavenger collects Lgt. Nuclear Core. 02120_ Destroyed Particle Gun. 02122_ R-06 Scavenger collects Lgt. Nuclear Core. 02122_ R-06 Scavenger collects Hover Unit. 02126_ K-01 Serf collects debris. 02130_ Xenon Bombardment Thruster destroyed. 02130_ K-01 Serf collects debris. 02132_ K-01 Serf cleans the Assembly Bed. 02133_ K-01 Serf collects debris. 02135_ K-01 Serf cleans the Assembly Bed. 02135_ Y-54 Guardian destroyed. 02135_ K-01 Serf cleans the Assembly Bed. 02136_ R-06 Scavenger collects Lgt. Nuclear Core. 02136_ K-01 Serf collects debris. 02140_ K-01 Serf cleans the Assembly Bed. 02140_ Prc. Shock Rifle destroyed. 02141_ R-06 Scavenger collects VTOL Module. 02143_ Protomatter-22 decays. 02143_ K-01 Serf collects debris. 02150_ M-13 Machinist fits Backup Laser I on G-47 Trooper. Map ----- +----------------------------------------------------+ | ?????????????????????????????????????????????????? | | ?????????????????????????????????????????????????? | | ?????????????????????????????????????????????????? | | ?????????????????????????????????????????????????? | | ?????????????????????????????????????????????????? | | ?????????????????????????????????????????????????? | | ?????????????????????????????????????????????????? | | ?????????????????????????????????????????????????? | | ??????????????????????o??????????????????????????? | | ????????????????????? ???????????????????????? | | ????????????????????? ?????k?????????????????? | | ????????????????????? > ???????????????????????? | | ????????????????????? ?u???k?????????????????? | | ????????????????????? ???????????????????????? | | ????????????????????? !???????????????????????? | | ?????????????????????# #???????????????????????? | | ?????????????????????# #???????????????????????? | | ?????????????????????+ #???????????????????????? | | ?????????????????????# ########????????????????? | | ?????????????????????# ## ] #????????????????? | | ? ???????????????????# ! #????????????????? | | " ???????????????????# *%= #????????????????? | | ???????????????????# u [ #????????????????? | | ???????????????????##=### #????????????????? | | #????????????#########+####r ##????????????????? | | #????????????# k =s@[# #?????????????????? | | #????+#??????# %r=%!g# #????######???????? | | #???# #??????# m""""""g# #??? ????????? | | ##### #??????# g""""""k# #?? ??????????? | | ## #??????# """"""k# #? ????????????? | | ## #??????# """"""=# # ??????????????? | | ## ######## + + ????????????????? | | ## # ! # ! """""" # #?????????????????? | | # # """""" # #?????????????????? | | # "" + ! """""" # #?????????????????? | | + "T #h """""" # #?????????????????? | | #### "" # !!/ %= # #?????????????????? | | #??# ###########+## #?????????????????? | | #####??#############????# #?????????????????? | | ??????????????# #????# #?????????????????? | | ??????????????# #????# #?????????????????? | | ??????????????# #????# #?????????????????? | | ############### #????# #?????????????????? | | + #????#+## #?????????????????? | | ##### # #???????= ?????????????????? | | ^ #?###+######??????? #????????????????? | | #?#/ #??????????? < ????????????????? | | " #?# #??????????? ##???????????????? | | " #?# !#??????????? ! #????????????????? | | " #?# #???????????## ###????????????????? | +----------------------------------------------------+ Best States ------------- Heat Dissipation 39 Energy Generation 15 Energy Capacity 850 Matter Stores 300 Matter Capacity 300 Sight Range 16 Robot Scan Range 20 Terrain Scan Density 10 Jamming Range 8 Resistance: KI 15 Evasion (%) 63 Offensive Hacking 20 Defensive Hacking 10 Item Schematics ----------------- Hacking Suite | -8/Materials | Hacked Adv. Sensor Array | -8/Materials | Scanalyzed Lightning Gun | -7/Factory | Hacked Imp. Particle Charger | -7/Factory | Hacked Robot Schematics ------------------ None Fabricated ------------ Nothing Alien Tech Used ----------------- None Achievements -------------- None Challenges ------------ None RPGLIKE | -11 -10 -10 -10 -9 -8 -7 --------- Run | Scr Mat Min Exi Min Mat Fac Levels Raised 5 | . . . . 1 2 2 XP Earned 10830 | 3000 150 500 200 1450 3065 2465 XP Spent 10030 | 2700 . . . 1750 2930 2650 Upgrades 27 | 6 . . . 4 12 5 Propulsion Slot 2 | 1 . . . 1 . . Utility Slot 3 | 1 . . . . 1 1 Weapon Slot 1 | 1 . . . . . . Core Integrity 8 | . . . . . 8 . Mass Support 1 | . . . . . 1 . Inventory Capacity 3 | . . . . 2 1 . Hack Attack % 4 | 3 . . . . 1 . Hack Defense % 2 | . . . . 1 . 1 KI Resistance % 3 | . . . . . . 3 Protomatter Created 282 | . 39 . . 54 145 44 Integrity Restored 620 | . 12 . . 270 236 102 Core 529 | . 12 . . 258 196 63 Parts 91 | . . . . 12 40 39 Protomatter Decayed 67 | . . . . 5 27 35 Game ------ Seed WaveFireRipper Manual? 0 Play Time 00:36:43 Cumulative 94.3 hours Start 2021.12.08 @ 01:33:22 End 2021.12.08 @ 02:08:09 Sessions 1 Manual Loads 0 Difficulty Rogue Special Mode Winter2019/RPGLIKE Game No. 132 Rogue 132 Adventurer 0 Explorer 0 Win Type - Total 1 Types 1/0/0/0/0/0/0/0/0 Lore% 43 Gallery% 55 Achievement% 44 Wizard Run 0 Options --------- ASCII 0 Keyboard 0 Movement Mouse Keybinds 0 Fullscreen 2 Font 18/X11 Map View 76x50 Tactical HUD 1 Map Filters NONE Filters NONE Steam 1 RUN: 3a31c1ce-7f29-4597-b090-982f0c70b524